bitfinex/quotes_BTCUSD_20230114
["timestamp","ask_amount","ask_price","bid_price","bid_amount"]
[1673667226755,5.7796746,20873.0,20872.0,1.71686446]
[1673667227307,5.56437403,20873.0,20872.0,1.81686447]
[1673667227515,5.28893067,20873.0,20872.0,2.12857276]
[1673667227787,5.28893067,20873.0,20872.0,1.9075217]
[1673667228051,5.28893067,20873.0,20872.0,2.3026152]
[1673667228321,0.63167673,20873.0,20872.0,2.3026152]
[1673667228554,0.00019,20876.0,20873.0,0.2]
[1673667228872,0.01651502,20877.0,20873.0,0.2]
[1673667228873,5.02e-06,20877.0,20876.0,0.2]
[1673667229072,0.00548383,20881.0,20880.0,0.06861538]
[1673667229336,0.00548383,20881.0,20880.0,1.00308346]
[1673667229630,0.00548383,20881.0,20880.0,1.24836946]
[1673667229860,0.00548383,20881.0,20880.0,1.14836945]
[1673667230368,0.00848383,20881.0,20880.0,1.28736945]
[1673667230612,0.00548383,20881.0,20880.0,1.14836945]
[1673667230923,0.00548383,20881.0,20880.0,0.68944756]
[1673667231148,0.27552252,20881.0,20880.0,0.17862665]
[1673667232150,0.75142652,20881.0,20880.0,0.03962665]
[1673667232422,0.75142652,20881.0,20878.0,0.1427886]
[1673667232670,0.75142652,20881.0,20879.0,0.03963]
[1673667232919,0.75142652,20881.0,20878.0,0.3427886]
[1673667233183,0.68830652,20881.0,20879.0,0.039631]
[1673667233490,0.68530652,20881.0,20878.0,0.3427886]
[1673667233714,0.68530652,20881.0,20879.0,0.039631]
[1673667233715,0.68830652,20881.0,20879.0,0.039631]
[1673667233932,0.68530652,20881.0,20878.0,0.3427886]
[1673667234201,0.68830652,20881.0,20879.0,0.039631]
[1673667234463,0.48738783,20881.0,20878.0,0.6809715]
[1673667234738,0.00848383,20881.0,20879.0,0.3966025]
[1673667235005,0.00848383,20881.0,20879.0,0.3569715]
[1673667235257,0.00848383,20881.0,20880.0,0.3824166]
[1673667235517,0.00848383,20881.0,20880.0,0.239628]
[1673667236340,0.00548383,20881.0,20880.0,0.239628]
[1673667236589,0.00548383,20881.0,20880.0,0.3824166]
[1673667236845,0.00548383,20881.0,20880.0,0.85961829]
[1673667237092,0.01848383,20881.0,20880.0,0.85961829]
[1673667237624,0.00548383,20881.0,20880.0,0.85961829]
[1673667237872,0.00548383,20881.0,20880.0,0.99161829]
[1673667238114,0.00948383,20881.0,20880.0,1.20580119]
[1673667238713,0.00548383,20881.0,20880.0,1.21656239]
[1673667239116,0.00548383,20881.0,20880.0,0.87364086]
[1673667239388,0.55050783,20881.0,20880.0,0.178628]
[1673667239657,0.48738783,20881.0,20880.0,0.039628]
[1673667239940,0.01148383,20881.0,20880.0,0.245898]
[1673667240219,0.00848383,20881.0,20880.0,0.106898]
[1673667240497,0.01148383,20881.0,20880.0,1.06572796]
[1673667240736,0.01148383,20881.0,20880.0,0.32125627]
[1673667240997,0.01148383,20881.0,20880.0,0.039628]
[1673667240998,0.00548383,20881.0,20880.0,0.039628]
[1673667241545,0.00848383,20881.0,20880.0,0.178628]
[1673667242622,0.00548383,20881.0,20880.0,0.039628]
[1673667242889,0.33259978,20881.0,20880.0,0.178628]
[1673667243174,0.61777783,20881.0,20877.0,0.35681117]
[1673667243465,0.62077783,20881.0,20880.0,0.139]
[1673667243732,0.61777783,20881.0,20875.0,0.35681117]
[1673667243992,0.61777783,20881.0,20880.0,0.132]
[1673667243993,0.67954783,20881.0,20880.0,0.132]
[1673667244268,0.99632683,20881.0,20874.0,0.35681117]
[1673667244520,0.56461295,20880.0,20875.0,0.35681117]
[1673667244771,1.62760695,20879.0,20875.0,0.35681117]
[1673667245295,0.2,20878.0,20875.0,0.14262827]
[1673667245549,0.957992,20877.0,20875.0,0.27462827]
[1673667245826,0.957992,20877.0,20875.0,0.14262827]
[1673667246090,0.957992,20877.0,20875.0,0.19962827]
[1673667246403,0.957992,20877.0,20875.0,0.14262827]
[1673667246614,0.957992,20877.0,20875.0,0.19962827]
[1673667247168,0.0578,20876.0,20875.0,0.114]
[1673667247435,0.2,20875.0,20873.0,0.80104418]
[1673667247676,1.811079,20874.0,20873.0,0.80104418]
[1673667248731,1.437192,20874.0,20873.0,0.80104418]
[1673667249032,1.757971,20874.0,20873.0,0.80104418]
[1673667249242,1.888971,20874.0,20873.0,0.80104418]
[1673667249484,1.437192,20874.0,20873.0,0.80104418]
[1673667249729,1.757971,20874.0,20873.0,0.80104418]
[1673667249972,1.888971,20874.0,20873.0,0.80104418]
[1673667250534,1.757971,20874.0,20873.0,0.80104418]
[1673667251813,1.837971,20874.0,20873.0,0.80404418]
[1673667252593,2.03054842,20874.0,20873.0,0.80404418]
[1673667253092,1.70976942,20874.0,20873.0,0.80404418]
[1673667253358,2.03054842,20874.0,20873.0,0.80404418]
[1673667254187,1.837971,20874.0,20873.0,0.80404418]
[1673667254383,1.517192,20874.0,20873.0,0.80404418]
[1673667254642,1.757971,20874.0,20873.0,0.80104418]
[1673667254886,1.837971,20874.0,20873.0,0.80404418]
[1673667255143,1.757971,20874.0,20873.0,0.80104418]
[1673667255429,2.037971,20874.0,20873.0,0.80404418]
[1673667255654,1.957971,20874.0,20873.0,0.80104418]
[1673667255904,2.07107822,20874.0,20873.0,0.80404418]
[1673667256162,1.93507822,20874.0,20873.0,0.80104418]
[1673667256438,1.93507822,20874.0,20873.0,0.90404419]
[1673667256439,1.094128,20874.0,20873.0,0.90404419]
[1673667256733,0.615064,20874.0,20873.0,0.84070418]
[1673667256926,0.136,20874.0,20873.0,1.34043688]
[1673667257205,0.136,20874.0,20873.0,1.19797056]
[1673667257439,0.136,20874.0,20873.0,0.84070418]
[1673667257705,0.272,20874.0,20873.0,0.84470418]
[1673667257963,0.15089396,20878.0,20873.0,0.84470418]
[1673667257964,0.15089396,20878.0,20873.0,0.84070418]
[1673667258207,0.47896,20879.0,20876.0,0.14279267]
[1673667258500,0.478938,20880.0,20877.0,0.039646]
[1673667258738,0.1565452,20878.0,20877.0,0.10000001]
[1673667259018,0.1565452,20878.0,20875.0,0.49977434]
[1673667259019,0.66969895,20878.0,20875.0,0.14279267]
[1673667259320,0.2,20876.0,20873.0,0.80104418]
[1673667259569,1.32269495,20875.0,20873.0,0.80104418]
[1673667259858,1.14880795,20875.0,20873.0,0.80104418]
[1673667260367,0.2,20874.0,20873.0,0.80104418]
[1673667260635,0.999843,20874.0,20873.0,0.80104418]
[1673667260893,0.9611023,20874.0,20873.0,0.80104418]
[1673667261179,0.9611023,20874.0,20873.0,0.83504418]
[1673667261421,0.6403233,20874.0,20873.0,0.83504418]
[1673667261678,0.479064,20874.0,20873.0,0.90104419]
[1673667262183,0.479064,20874.0,20873.0,0.98349685]
[1673667262966,0.479041,20875.0,20873.0,1.19768585]
[1673667263247,0.479041,20875.0,20874.0,0.3428316]
[1673667263487,0.479041,20875.0,20874.0,0.3966776]
[1673667264260,0.47903,20876.0,20874.0,0.253846]
[1673667264532,0.47903,20876.0,20874.0,0.214189]
[1673667264765,0.479007,20877.0,20875.0,0.18249956]
[1673667265048,0.479007,20877.0,20875.0,0.14284756]
[1673667265316,0.478986,20878.0,20875.0,0.14284756]
[1673667265317,0.478986,20878.0,20876.0,0.38249456]
[1673667265560,0.478986,20878.0,20876.0,0.34284756]
[1673667265841,0.478986,20878.0,20877.0,0.106913]
[1673667267192,0.478986,20878.0,20876.0,0.14284756]
[1673667267462,0.487986,20878.0,20877.0,0.034]
[1673667268289,0.63791343,20878.0,20877.0,0.034]
[1673667268894,0.63791343,20878.0,20877.0,0.03391103]
[1673667272428,0.62891343,20878.0,20875.0,0.14284756]
[1673667272675,0.64091343,20878.0,20877.0,0.004]
[1673667272958,0.64091343,20878.0,20874.0,0.35703656]
[1673667272959,0.62891343,20878.0,20874.0,0.35703656]
[1673667273212,0.90463938,20878.0,20877.0,0.004]
[1673667273479,0.71391343,20878.0,20877.0,0.004]
[1673667274308,0.884765,20878.0,20877.0,0.004]
[1673667274572,1.142565,20878.0,20877.0,0.004]
[1673667274888,1.073565,20878.0,20874.0,0.004]
[1673667275326,0.2,20876.0,20873.0,0.80104418]
[1673667275328,0.2,20876.0,20873.0,0.80123418]
[1673667275585,2.236943,20875.0,20873.0,0.80123418]
[1673667275851,0.231687,20874.0,20873.0,0.78623418]
[1673667276104,0.710751,20874.0,20873.0,0.78623418]
[1673667276396,0.710751,20874.0,20873.0,0.78723418]
[1673667276627,0.83131254,20874.0,20873.0,0.78623418]
[1673667277168,0.96531254,20874.0,20873.0,0.78604418]
[1673667278293,0.83131254,20874.0,20873.0,0.78604418]
[1673667278544,0.652951,20874.0,20873.0,0.78604418]
[1673667278809,0.81744568,20874.0,20873.0,0.78604418]
[1673667279357,0.95144568,20874.0,20873.0,0.78604418]
[1673667279632,0.96433768,20874.0,20873.0,0.78604418]
[1673667279897,0.77755868,20874.0,20873.0,0.78604418]
[1673667280219,1.09833768,20874.0,20873.0,0.78604418]
[1673667280480,0.991643,20874.0,20873.0,0.78604418]
[1673667280753,1.191643,20874.0,20873.0,0.78604418]
[1673667281541,1.325643,20874.0,20873.0,0.78604418]
[1673667281855,1.125643,20874.0,20873.0,0.78604418]
[1673667282114,0.857643,20874.0,20873.0,0.78604418]
[1673667282401,1.17038789,20874.0,20873.0,0.78604418]
[1673667282641,1.03538789,20874.0,20873.0,0.78604418]
[1673667282901,1.17138789,20874.0,20873.0,0.78604418]
[1673667283159,0.857643,20874.0,20873.0,0.78604418]
[1673667283456,1.13888939,20874.0,20873.0,0.78394418]
[1673667283932,1.193643,20874.0,20873.0,0.78394418]
[1673667284197,1.057643,20874.0,20873.0,0.78394418]
[1673667284539,1.18919718,20874.0,20873.0,0.78394418]
[1673667284746,0.799843,20874.0,20873.0,0.86394419]
[1673667285020,0.615064,20874.0,20873.0,1.26371852]
[1673667285271,0.479064,20874.0,20873.0,1.30337852]
[1673667285587,0.615064,20874.0,20873.0,1.44617119]
[1673667285851,0.479064,20874.0,20873.0,1.16169788]
[1673667286117,0.615064,20874.0,20873.0,1.30404574]
[1673667286384,0.479064,20874.0,20873.0,1.08918952]
[1673667286661,0.479064,20874.0,20873.0,1.44617119]
[1673667286887,0.479064,20874.0,20873.0,1.08918952]
[1673667287146,0.479064,20874.0,20873.0,1.44617119]
[1673667287397,0.485064,20874.0,20873.0,1.44917119]
[1673667287648,0.479064,20874.0,20873.0,1.44617119]
[1673667287920,0.485064,20874.0,20873.0,1.44917119]
[1673667288691,0.485064,20874.0,20873.0,1.30706089]
[1673667288985,0.485064,20874.0,20873.0,1.16358585]
[1673667289218,0.006,20874.0,20873.0,0.80660418]
[1673667290278,0.479034,20876.0,20873.0,0.80360418]
[1673667290524,0.006,20874.0,20873.0,0.76694418]
[1673667290799,0.83592955,20874.0,20873.0,1.16172536]
[1673667291064,0.83592955,20874.0,20873.0,0.97883463]
[1673667291065,0.6452036,20874.0,20873.0,0.97883463]
[1673667291312,0.6452036,20874.0,20873.0,0.14326198]
[1673667291564,0.479064,20874.0,20871.0,0.35815243]
[1673667291844,0.320779,20873.0,20871.0,0.14326198]
[1673667292109,1.811217,20872.0,20871.0,0.14326198]
[1673667292428,1.63733,20872.0,20870.0,0.35815243]
[1673667292634,0.320779,20871.0,20870.0,0.45815244]
[1673667292925,1.15823698,20872.0,20869.0,0.42871965]
[1673667293178,1.15823698,20872.0,20871.0,0.28652662]
[1673667293443,0.95822,20872.0,20871.0,0.21489497]
[1673667293711,0.95822,20872.0,20871.0,0.35816301]
[1673667293961,0.95822,20872.0,20871.0,0.14326804]
[1673667294253,0.15002943,20871.0,20870.0,0.14326804]
[1673667294524,0.80304943,20871.0,20869.0,0.35816301]
[1673667294784,0.62916243,20871.0,20869.0,0.14326804]
[1673667295204,0.62916243,20871.0,20869.0,0.35816301]
[1673667295408,0.479133,20871.0,20869.0,0.35816301]
[1673667295629,0.479133,20871.0,20869.0,0.14326804]
[1673667295859,0.15457093,20870.0,20869.0,0.14326804]
[1673667296091,1.11288293,20870.0,20869.0,0.14326804]
[1673667296384,1.11288293,20870.0,20869.0,0.35816301]
[1673667296612,1.11288293,20870.0,20869.0,0.14626804]
[1673667296888,1.11288293,20870.0,20869.0,0.35816301]
[1673667297154,0.964312,20870.0,20869.0,0.14526804]
[1673667297463,0.964312,20870.0,20869.0,0.71395026]
[1673667297693,0.964312,20870.0,20869.0,0.75362826]
[1673667298222,0.958312,20870.0,20869.0,0.75162826]
[1673667298546,0.964312,20870.0,20869.0,0.46710164]
[1673667298739,0.479136,20871.0,20869.0,0.75156968]
[1673667298999,0.95829,20871.0,20870.0,0.50131309]
[1673667299274,1.12917317,20871.0,20870.0,0.1432332]
[1673667300082,1.12917317,20871.0,20870.0,0.35808167]
[1673667300716,1.02529,20871.0,20870.0,0.35808167]
[1673667300941,1.02529,20871.0,20870.0,0.21484847]
[1673667301205,1.20363521,20871.0,20870.0,0.35807389]
[1673667301478,1.20363521,20871.0,20868.0,0.15689953]
[1673667301966,1.20363521,20871.0,20868.0,0.371748]
[1673667302223,0.320779,20870.0,20868.0,0.01367411]
[1673667302500,1.279137,20869.0,20868.0,0.01367411]
[1673667302853,0.479179,20869.0,20868.0,0.371748]
[1673667303028,0.958328,20870.0,20868.0,0.15689953]
[1673667303297,0.17507987,20869.0,20868.0,0.15689953]
[1673667303551,0.17507987,20869.0,20868.0,0.15989953]
[1673667303894,0.17507987,20869.0,20868.0,0.15689953]
[1673667304074,0.17507987,20869.0,20868.0,0.15889953]
[1673667304344,0.17507987,20869.0,20868.0,0.15689953]
[1673667304601,0.18707987,20869.0,20868.0,0.01667411]
[1673667305171,0.18698018,20869.0,20868.0,0.01667411]
[1673667305438,0.18698018,20869.0,20868.0,0.01367411]
[1673667305439,0.17498018,20869.0,20868.0,0.01367411]
[1673667305719,0.18098018,20869.0,20868.0,0.01567411]
[1673667306027,0.65415918,20869.0,20868.0,0.01367411]
[1673667306287,0.72115918,20869.0,20868.0,0.01367411]
[1673667307170,0.72115918,20869.0,20868.0,0.15689953]
[1673667307412,0.65415918,20869.0,20868.0,0.15689953]
[1673667308239,0.65415918,20869.0,20868.0,0.06397516]
[1673667308821,0.479167,20870.0,20868.0,0.44609364]
[1673667309052,0.671249,20869.0,20866.0,0.0139253]
[1673667309307,0.320779,20868.0,20866.0,0.0139253]
[1673667309566,1.611562,20867.0,20866.0,0.0139253]
[1673667310103,0.95845,20867.0,20866.0,0.0139253]
[1673667310370,0.95845,20867.0,20866.0,0.23083649]
[1673667310619,0.95845,20867.0,20866.0,0.22883649]
[1673667311693,0.95845,20867.0,20866.0,0.23083649]
[1673667311929,0.96445,20867.0,20866.0,0.23083649]
[1673667312762,0.006,20867.0,20866.0,0.44134894]
[1673667313004,0.006,20867.0,20866.0,0.1228893]
[1673667315082,0.006,20867.0,20866.0,0.0556193]
[1673667315084,0.006,20867.0,20866.0,1.06154065]
[1673667315329,0.64777006,20874.0,20867.0,0.2]
[1673667315597,0.18270098,20873.0,20872.0,0.2150169]
[1673667315852,0.18270098,20873.0,20872.0,0.35468691]
[1673667316133,0.18270098,20873.0,20871.0,0.2150169]
[1673667316134,0.65910198,20873.0,20871.0,0.2150169]
[1673667316398,0.479087,20873.0,20870.0,0.2150169]
[1673667316685,0.19176368,20872.0,20870.0,0.2150169]
[1673667316937,0.958266,20871.0,20870.0,0.50172966]
[1673667317501,0.958266,20871.0,20870.0,0.54140066]
[1673667318880,0.004,20872.0,20870.0,0.6258727]
[1673667319105,0.479011,20877.0,20871.0,0.90701559]
[1673667319409,0.479011,20877.0,20875.0,0.35817703]
[1673667319659,0.66295125,20877.0,20876.0,0.14327081]
[1673667319951,0.479011,20877.0,20876.0,0.28291782]
[1673667320207,0.62178013,20877.0,20876.0,0.18291781]
[1673667320492,0.479011,20877.0,20874.0,0.35817703]
[1673667320777,0.16700197,20876.0,20875.0,0.14327081]
[1673667321036,0.64601997,20876.0,20875.0,0.18291981]
[1673667321287,0.64601997,20876.0,20875.0,0.039649]
[1673667321793,0.64601997,20876.0,20875.0,0.39782603]
[1673667321797,0.479018,20876.0,20875.0,0.25455522]
[1673667322102,0.003,20876.0,20875.0,0.54509685]
[1673667322565,0.079,20876.0,20875.0,0.54909685]
[1673667322846,0.6200472,20877.0,20875.0,0.54109685]
[1673667323093,0.003,20876.0,20875.0,0.21890622]
[1673667323351,0.003,20876.0,20875.0,0.25455622]
[1673667323624,0.006,20876.0,20875.0,0.25855622]
[1673667323889,0.006,20876.0,20875.0,0.54509785]
[1673667324228,0.006,20876.0,20875.0,0.18681976]
[1673667324438,0.6200472,20877.0,20875.0,0.18281976]
[1673667324744,0.6230472,20877.0,20875.0,0.35807598]
[1673667325029,0.6230472,20877.0,20876.0,0.039647]
[1673667325337,0.6200472,20877.0,20875.0,0.35807598]
[1673667325543,0.6200472,20877.0,20876.0,0.039646]
[1673667325544,0.6230472,20877.0,20876.0,0.039646]
[1673667326102,0.6990472,20877.0,20876.0,0.004]
[1673667326409,0.558011,20877.0,20876.0,0.004]
[1673667326939,0.73181076,20877.0,20876.0,0.004]
[1673667328665,0.73181076,20877.0,20876.0,0.043646]
[1673667328918,0.079,20877.0,20876.0,0.71236386]
[1673667329175,0.079,20877.0,20876.0,0.75563466]
[1673667330259,0.079,20877.0,20876.0,0.61204781]
[1673667330533,0.07708664,20877.0,20876.0,0.61204781]
[1673667330794,0.07708664,20877.0,20876.0,0.39745763]
[1673667331060,0.07708664,20877.0,20876.0,0.94629472]
[1673667331319,0.07708664,20877.0,20876.0,1.23224599]
[1673667331584,0.07708664,20877.0,20876.0,1.23224428]
[1673667331849,0.07708664,20877.0,20876.0,1.42531272]
[1673667332117,0.07708664,20877.0,20876.0,1.23224333]
[1673667332399,0.00703214,20878.0,20876.0,0.94229472]
[1673667332694,0.00703214,20878.0,20877.0,0.69163672]
[1673667332939,0.00703214,20878.0,20877.0,1.07423726]
[1673667333211,0.00703214,20878.0,20877.0,1.07502172]
[1673667333477,0.00703214,20878.0,20877.0,1.36080742]
[1673667333783,0.19775809,20878.0,20877.0,0.25398809]
[1673667334061,0.34514809,20878.0,20877.0,0.042]
[1673667334332,0.67621355,20878.0,20877.0,0.042]
[1673667334609,0.48602214,20878.0,20875.0,0.14290247]
[1673667334870,0.15691927,20877.0,20875.0,0.14290247]
[1673667335367,0.15691927,20877.0,20874.0,0.35224756]
[1673667335377,0.479018,20876.0,20874.0,0.50013079]
[1673667335635,0.479018,20876.0,20874.0,0.21434509]
[1673667335921,0.66974395,20876.0,20873.0,0.21434509]
[1673667336167,0.320779,20875.0,20872.0,0.50032079]
[1673667336426,0.66978495,20875.0,20872.0,0.50032079]
[1673667336740,0.479059,20875.0,20872.0,0.50032079]
[1673667336985,0.479059,20875.0,20873.0,0.25134509]
[1673667337257,0.479059,20875.0,20873.0,0.21434509]
[1673667337512,0.492059,20875.0,20873.0,0.21434509]
[1673667337782,0.479059,20875.0,20873.0,0.21434509]
[1673667338051,0.64397118,20875.0,20873.0,0.25134509]
[1673667339117,0.493059,20875.0,20873.0,0.53713079]
[1673667339390,0.479059,20875.0,20874.0,0.239657]
[1673667339652,0.493059,20875.0,20874.0,0.73978779]
[1673667339891,0.014,20875.0,20874.0,0.73978779]
[1673667340146,0.029,20875.0,20874.0,0.73978779]
[1673667340411,0.029,20875.0,20874.0,0.68361973]
[1673667340681,0.2005777,20876.0,20874.0,0.25404179]
[1673667340938,0.014,20875.0,20874.0,0.25138479]
[1673667341183,0.95806,20876.0,20874.0,0.25403879]
[1673667341452,0.009,20875.0,20874.0,0.67996273]
[1673667341769,0.009,20875.0,20874.0,0.71966515]
[1673667342285,0.479041,20876.0,20874.0,0.32548812]
[1673667342545,0.014,20876.0,20875.0,0.21437645]
[1673667342811,0.63693796,20877.0,20875.0,0.039652]
[1673667343129,0.17603341,20875.0,20874.0,0.036]
[1673667343477,0.17603341,20875.0,20873.0,0.21437645]
[1673667343478,0.479041,20875.0,20873.0,0.21437645]
[1673667343667,0.479041,20875.0,20873.0,0.50021057]
[1673667343957,0.479041,20875.0,20874.0,0.039652]
[1673667344761,0.479041,20875.0,20873.0,0.21437645]
[1673667345255,0.479041,20875.0,20874.0,0.18261953]
[1673667345515,0.494041,20875.0,20874.0,0.18261953]
[1673667345782,0.479041,20875.0,20874.0,0.039656]
[1673667346048,0.494041,20875.0,20873.0,0.39433998]
[1673667346303,0.479041,20875.0,20873.0,0.35733998]
[1673667346552,0.488041,20875.0,20874.0,0.075656]
[1673667346811,0.479041,20875.0,20874.0,0.039656]
[1673667347070,0.488041,20875.0,20874.0,0.17896353]
[1673667347340,0.488041,20875.0,20874.0,0.18261953]
[1673667347883,0.65278659,20875.0,20874.0,0.14296353]
[1673667348178,0.84351254,20875.0,20873.0,0.14296353]
[1673667348493,0.50968223,20874.0,20871.0,0.35733998]
[1673667348868,1.132061,20873.0,20871.0,0.35733998]
[1673667349042,0.958174,20873.0,20872.0,0.14296353]
[1673667351122,0.967174,20873.0,20872.0,0.39333998]
[1673667351398,1.11364934,20873.0,20872.0,0.35733998]
[1673667351692,1.11764934,20873.0,20872.0,0.36033998]
[1673667351958,1.11364934,20873.0,20872.0,0.14296353]
[1673667352219,1.11764934,20873.0,20872.0,0.14596353]
[1673667352511,1.11364934,20873.0,20872.0,0.35733998]
[1673667352803,1.11764934,20873.0,20872.0,0.36033998]
[1673667353110,1.11764934,20873.0,20872.0,0.21737645]
[1673667353323,1.11764934,20873.0,20872.0,0.50321057]
[1673667353582,1.11764934,20873.0,20872.0,0.28883412]
[1673667354156,1.12164934,20873.0,20872.0,0.29183412]
[1673667354405,1.11364934,20873.0,20872.0,0.50067994]
[1673667354666,0.483087,20873.0,20872.0,0.64401115]
[1673667354942,0.479067,20874.0,20872.0,0.39784203]
[1673667355428,0.004,20873.0,20872.0,0.07027]
[1673667355695,0.479067,20874.0,20872.0,0.106934]
[1673667355978,0.479067,20874.0,20873.0,0.35826528]
[1673667356239,0.479067,20874.0,20864.0,0.15]
[1673667356240,0.2,20873.0,20864.0,0.15]
[1673667356508,0.19072595,20872.0,20868.0,0.47739169]
[1673667356761,0.2,20871.0,20868.0,0.47739169]
[1673667357031,0.39072595,20871.0,20868.0,0.47739169]
[1673667357310,0.2,20871.0,20868.0,0.47739169]
[1673667357868,0.2,20871.0,20868.0,0.51439169]
[1673667357869,0.213,20871.0,20868.0,0.51439169]
[1673667358132,0.40372595,20871.0,20870.0,0.28674848]
[1673667358450,0.213,20871.0,20870.0,0.28674848]
[1673667358652,0.2,20871.0,20870.0,0.28674848]
[1673667358923,0.213,20871.0,20870.0,0.28674848]
[1673667359189,0.213,20871.0,20870.0,0.10000001]
[1673667359190,0.013,20871.0,20870.0,0.10000001]
[1673667359524,0.013,20871.0,20868.0,0.037]
[1673667359734,0.013,20871.0,20869.0,0.47720169]
[1673667360024,0.009,20871.0,20870.0,0.075668]
[1673667360282,0.18038467,20871.0,20870.0,0.039668]
[1673667360589,0.19338467,20871.0,20869.0,0.47720169]
[1673667360860,0.19338467,20871.0,20870.0,0.039675]
[1673667361128,0.18438467,20871.0,20870.0,0.039675]
[1673667361383,0.18438467,20871.0,20870.0,0.076675]
[1673667361657,0.18438467,20871.0,20870.0,0.039675]
[1673667362141,0.19838467,20871.0,20870.0,0.076675]
[1673667362426,0.16039,20871.0,20870.0,0.076675]
[1673667362755,0.14739,20871.0,20870.0,0.32365741]
[1673667362972,0.20417853,20871.0,20870.0,0.037]
[1673667363231,0.40417853,20871.0,20870.0,0.64488529]
[1673667363508,0.41917853,20871.0,20870.0,0.68188575]
[1673667363828,0.2,20871.0,20870.0,0.64488575]
[1673667364024,0.21352577,20871.0,20870.0,0.53858855]
[1673667364308,0.679276,20874.0,20870.0,0.74488576]
[1673667364652,0.015,20871.0,20870.0,0.51420169]
[1673667364931,0.19042364,20873.0,20870.0,0.35826689]
[1673667365206,0.2,20872.0,20871.0,0.28659351]
[1673667365466,0.2,20872.0,20871.0,0.6448604]
[1673667365759,0.2,20872.0,20871.0,0.50154803]
[1673667366283,0.209,20872.0,20871.0,0.32259351]
[1673667366543,0.2,20872.0,20871.0,0.28659351]
[1673667366820,0.209,20872.0,20871.0,0.39426394]
[1673667367081,0.209,20872.0,20871.0,0.14330809]
[1673667367082,0.679128,20872.0,20871.0,0.14330809]
[1673667367374,0.679128,20872.0,20871.0,0.003]
[1673667367375,0.683128,20872.0,20871.0,0.003]
[1673667367629,0.999907,20872.0,20870.0,0.14330809]
[1673667367890,0.683128,20872.0,20871.0,0.003]
[1673667368144,1.003907,20872.0,20871.0,0.003]
[1673667368712,1.14583746,20872.0,20870.0,0.14330809]
[1673667368977,0.62533991,20872.0,20871.0,0.14330809]
[1673667369213,0.62533991,20872.0,20871.0,0.36326394]
[1673667369480,0.22421191,20872.0,20871.0,0.50654936]
[1673667369789,0.22421191,20872.0,20871.0,0.50151974]
[1673667370052,0.209,20872.0,20871.0,0.35821377]
[1673667370314,0.36554951,20872.0,20871.0,0.14328754]
[1673667370578,0.44354951,20872.0,20871.0,0.14828754]
[1673667370847,0.35654951,20872.0,20871.0,0.14328754]
[1673667371124,0.15654951,20872.0,20871.0,0.14328754]
[1673667371349,0.63565951,20872.0,20871.0,0.14328754]
[1673667371857,0.83965951,20872.0,20871.0,0.14628754]
[1673667372130,0.83565951,20872.0,20871.0,0.35821377]
[1673667372442,0.91365951,20872.0,20871.0,0.14828754]
[1673667372668,0.83565951,20872.0,20871.0,0.14328754]
[1673667372920,0.83965951,20872.0,20871.0,0.36121377]
[1673667373187,0.63965951,20872.0,20871.0,0.21492623]
[1673667373445,0.71365951,20872.0,20871.0,0.50151974]
[1673667373971,0.71765951,20872.0,20871.0,0.50451974]
[1673667374233,0.23854951,20872.0,20871.0,0.50451974]
[1673667374488,0.082,20872.0,20871.0,0.36126689]
[1673667374768,0.082,20872.0,20871.0,0.04267]
[1673667375046,0.19434693,20874.0,20871.0,0.03967]
[1673667375272,0.078,20872.0,20871.0,0.10500001]
[1673667375525,0.19434693,20874.0,20871.0,0.46962965]
[1673667375851,6e-05,20875.0,20873.0,0.64550884]
[1673667376070,0.1464042,20875.0,20874.0,0.54171743]
[1673667376613,6e-05,20875.0,20874.0,0.68516598]
[1673667377109,6e-05,20875.0,20874.0,0.39827602]
[1673667377352,0.15944692,20878.0,20874.0,1.42588734]
[1673667377638,0.15944692,20878.0,20877.0,0.50174411]
[1673667377886,0.00703214,20878.0,20877.0,0.64138912]
[1673667378143,0.00703214,20878.0,20877.0,0.84509957]
[1673667378144,0.00692684,20878.0,20877.0,0.84509957]
[1673667378665,0.02092684,20878.0,20877.0,0.92174057]
[1673667378917,0.02092684,20878.0,20877.0,1.07523134]
[1673667378918,0.00692684,20878.0,20877.0,1.07523134]
[1673667379202,0.00692684,20878.0,20877.0,1.11223134]
[1673667379203,0.02092684,20878.0,20877.0,1.11223134]
[1673667379447,0.00692684,20878.0,20877.0,1.36176815]
[1673667379701,0.00692684,20878.0,20877.0,1.07523134]
[1673667380269,0.00692684,20878.0,20877.0,0.87523134]
[1673667380753,0.00692684,20878.0,20877.0,0.99583869]
[1673667381001,0.00692684,20878.0,20877.0,1.19583869]
[1673667381622,0.00692684,20878.0,20877.0,1.62580034]
[1673667381790,0.00692684,20878.0,20877.0,1.19583869]
[1673667382067,0.02092684,20878.0,20877.0,1.66280034]
[1673667382355,0.00692684,20878.0,20877.0,1.62580034]
[1673667382589,0.02092684,20878.0,20877.0,1.66280034]
[1673667382851,0.02092684,20878.0,20877.0,1.19583869]
[1673667383107,0.00692684,20878.0,20877.0,1.62526259]
[1673667383484,0.00692684,20878.0,20877.0,1.62462892]
[1673667383659,0.00692684,20878.0,20877.0,1.19562413]
[1673667383934,0.00020439,20879.0,20878.0,0.2]
[1673667384239,0.00554383,20881.0,20878.0,1.63514769]
[1673667384532,0.00554383,20881.0,20880.0,0.9061609]
[1673667384804,0.00548383,20881.0,20880.0,2.3429419]
[1673667385076,0.00548383,20881.0,20880.0,2.3823539]
[1673667385895,0.01848383,20881.0,20880.0,2.38227169]
[1673667386400,0.01848383,20881.0,20880.0,1.35244859]
[1673667386709,0.00548383,20881.0,20880.0,1.35246153]
[1673667386967,0.01848383,20881.0,20880.0,1.24545848]
[1673667387266,0.00548383,20881.0,20880.0,1.62441769]
[1673667387795,0.01848383,20881.0,20880.0,1.67441769]
[1673667388052,0.00548383,20881.0,20880.0,1.62441769]
[1673667388515,0.00548383,20881.0,20880.0,1.67441769]
[1673667388516,0.01848383,20881.0,20880.0,1.67441769]
[1673667389064,0.01848383,20881.0,20880.0,1.88032013]
[1673667389339,0.00866423,20892.0,20884.0,0.03747615]
[1673667389618,0.00866423,20892.0,20887.0,0.47720169]
[1673667389940,0.00866423,20892.0,20890.0,0.49814947]
[1673667389941,0.16224125,20891.0,20890.0,0.49814947]
[1673667390152,0.00866423,20892.0,20890.0,0.83302418]
[1673667390414,0.07478423,20892.0,20891.0,0.039363]
[1673667391012,0.27478423,20892.0,20887.0,0.14232986]
[1673667391256,1.23009497,20891.0,20890.0,0.062]
[1673667392340,0.68529997,20891.0,20890.0,0.062]